Workbook

Sheet IoT_GET
A1: Name | B1: Value | C1: Description
A2: sjonFolder | B2: https://jvatn.folk.ntnu.no/eLearning/DT/ | C2: Usually, do not update | E2: Digital twin
A3: sjonName | B3: DT_Pump_Predictive | C3: Name of SJON file to use, without extension
A4: mu | B4: 0.05 | C4: Drift
A5: sigma | B5: 0.15 | C5: Standardavvik, inkrementer
A6: l | B6: 100 | C6: Sviktgrense
A7: lambda_S | B7: 5e-05 | C7: Konstant sviktintensitet, standbypumpe
A8: MDT | B8: 24 | C8: Midlere nedetid ved svikt av aktiv pumpe
A9: C_U | B9: 25000 | C9: Nedetidskostnad per time
A10: C_FT | B10: 2000 | C10: Kostnad for funksjonstest | E10: Optimizer
A11: C_T | B11: 50000 | C11: Kostnad for "trip", dvs ved systemsvikt
A12: tau | B12: 1314.678955 | C12: Intervall for funksjonstesting, standbypumpe
A13: x_t0 | B13: 80 | C13: Tilstand ved nåtidspunkt (t0)
A14: T_L | B14: =14*24 -> 336 | C14: Ledetid
A15: E(T) | B15: =l/mu -> 2000 | C15: =_xlfn.FORMULATEXT(B15) -> =l/mu
A16: SD(T) | B16: =SQRT(sigma^2*l/mu^3) -> 134.1640786 | C16: =_xlfn.FORMULATEXT(B16) -> =SQRT(sigma^2*l/mu^3)
A17: alpha | B17: =(l-x_t0)/mu -> 400 | C17: =_xlfn.FORMULATEXT(B17) -> =(l-x_t0)/mu
A18: beta | B18: =(l-x_t0)^2/sigma^2 -> 17777.77778 | C18: =(l-x_t0)^2/sigma^2
A19: F_T | B19: =cdfIG(T_L,alpha,beta) -> 0.137899071 | C19: =cdfIG(T_L,alpha,beta)
A20: PFD | B20: =lambda_S*tau/2 -> 0.03286697388 | C20: =_xlfn.FORMULATEXT(B20) -> =lambda_S*tau/2
A21: lambda_A | B21: =F_T/(E_T-alpha+T_L) -> 7.122885898e-05 | C21: =_xlfn.FORMULATEXT(B21) -> =F_T/(E_T-alpha+T_L)
A22: MTTF_A | B22: =(1/lambda_A)/8760 -> 1.602654497 | C22: =_xlfn.FORMULATEXT(B22) -> =(1/lambda_A)/8760
A23: MTTF_S | B23: =(1/lambda_S)/8760 -> 2.283105023 | C23: =(1/lambda_S)/8760
A24: q_A | B24: =lambda_A*MDT -> 0.001709492615 | C24: =lambda_A*MDT
A25: Q_System | B25: =q_A*PFD -> 5.618584913e-05 | C25: =q_A*PFD
A26: Nedetid | B26: =Q_System*8760 -> 0.4921880384 | C26: Timer per år
A27: F_system | B27: =lambda_A*PFD -> 2.341077047e-06 | C27: =lambda_A*PFD
A28: F per år | B28: =B27*8760 -> 0.02050783493 | C28: Per år
A29: C_tau | B29: =C_FT/tau+C_U*Q_System+C_T*F_system -> 3.042984035 | C29: =C_FT/tau+C_U*Q_System+C_T*F_system
A30: C per år | B30: =B29*8760 -> 26656.54015 | C30: Per år
A31: msg | B31: Veldig veldig sent
